Cogmind - Beta 15 @@@ ROGUE MODE // 2025.07.09 @ 18:10:20 Player: EX-OCT Result: Destroyed by AG-35854 with Assembled Focal Cannon Performance ------------- Evolutions (1) 500 Regions Visited (6) 1200 Robots Destroyed (35) 175 Value Destroyed (549) 549 Prototype IDs (5) 100 Alien Tech Used (0) 0 Bonus (1177) 1177 TOTAL SCORE: 3701 Bonus ------- High Alert Combat Kills 19 Follower Combat Kills 158 Triggered Deep Caves Wall 500 Exposed GOLEM Chamber 500 Cogmind --------- Core Integrity 0/400 Matter 300/300 Energy 93/100 System Corruption 0% Temperature Cool (24) Movement Core (50) Location -7/Deep Caves Parts ------- > --- POWER (1) -------- (None) > --- PROPULSION (4) --- (None) > --- UTILITY (2) ------ (None) > --- WEAPON (2) ------- (None) > --- INVENTORY (5) ---- Medium Storage Unit Advanced Beam Cannon Peak State ------------ > --- POWER ------------ Light Ion Engine > --- PROPULSION ------- Titanium Leg Titanium Leg Titanium Leg Flight Unit > --- UTILITY ---------- Core Shielding Propulsion Shielding > --- WEAPON ----------- Advanced Beam Cannon Autogun > --- INVENTORY -------- Light Ion Engine Medium Storage Unit Grenade Launcher Mining Laser [Rating: 18] Favorites ----------- Power Light Ion Engine Engine Light Ion Engine Propulsion Flight Unit Treads Light Treads Leg Titanium Leg Flight Unit Flight Unit Utility Propulsion Shielding Processor Targeting Computer Protection Propulsion Shielding Weapon Advanced Beam Cannon Energy Gun Medium Laser Energy Cannon Advanced Beam Cannon Ballistic Gun Autogun Ballistic Cannon Light Cannon Launcher Grenade Launcher Special Weapon Plasma Cutter Impact Weapon Mace Piercing Weapon CR-A16's Pointy Stick Build | -11 -10 -10 -9 -9 -7 -7 ------- Run | Yrd Mat Min Mat Min Zio Dee Slots Evolved 2 | . . . 2 . . . Power . | . . . . . . . Propulsion 2 | . . . 2 . . . Utility . | . . . . . . . Weapon . | . . . . . . . Parts Attached 31 | 3 11 . 14 1 2 . Power 3 | . 1 . 2 . . . Engine 3 | . 1 . 2 . . . Core . | . . . . . . . Reactor . | . . . . . . . Propulsion 13 | 2 2 . 8 1 . . Treads 2 | 2 . . . . . . Leg 3 | . . . 3 . . . Wheel . | . . . . . . . Hover . | . . . . . . . Flight 8 | . 2 . 5 1 . . Utility 5 | . 5 . . . . . Device . | . . . . . . . Storage . | . . . . . . . Processor 1 | . 1 . . . . . Hackware . | . . . . . . . Protection 4 | . 4 . . . . . Artifact . | . . . . . . . Weapon 10 | 1 3 . 4 . 2 . Energy Gun 1 | 1 . . . . . . Energy Cannon 1 | . . . 1 . . . Ballistic Gun 3 | . 2 . 1 . . . Ballistic Cannon 1 | . . . 1 . . . Launcher 1 | . 1 . . . . . Special Weapon 1 | . . . . . 1 . Impact Weapon 1 | . . . 1 . . . Slashing Weapon . | . . . . . . . Piercing Weapon 1 | . . . . . 1 . Special Melee Weapon . | . . . . . . . Unidentified Prototypes 1 | . . . 1 . . . Parts Lost 14 | . 3 . 3 . . 8 Power 1 | . . . 1 . . . Propulsion 7 | . 1 . 2 . . 4 Utility 2 | . . . . . . 2 Weapon 4 | . 2 . . . . 2 Highest Loss Streak 8 | . 2 . 2 . . 8 To Critical Strikes . | . . . . . . . Average Backups 3 | . 3 5 4 3 3 3 Power . | . 1 2 . . . . Propulsion . | . . . . . . . Utility . | . . 1 1 1 1 1 Weapon 1 | . 1 2 1 1 1 2 Tool/Special . | . . . . . . . Unused Backups 3 | . 1 . 1 . . 1 Power . | . . . . . . . Propulsion . | . . . . . . . Utility 1 | . . . . . . 1 Weapon 2 | . 1 . 1 . . . Tool/Special . | . . . . . . . Average Slot Usage (%) 78 | . 63 42 89 86 88 75 Engine 5 | . 8 . 7 . . . Treads 1 | . 5 . . . . . Leg 6 | . . . 14 . . . Flight 27 | . 16 14 24 42 44 38 Processor 1 | . 8 . . . . . Protection 19 | . 5 28 22 22 22 18 Energy Cannon 4 | . . . 7 11 1 . Ballistic Gun 5 | . 14 . 6 . . . Ballistic Cannon 1 | . . . 2 . . . Special Weapon 1 | . . . . . 9 5 Impact Weapon 1 | . . . 2 11 1 . Piercing Weapon 2 | . . . . . 9 11 Peak Build Rating 18 | 3 7 3 18 12 14 13 Average Rating 10 | 2 4 3 13 11 12 11 On Entrance 6 | . 3 3 3 10 12 13 Naked Turns . | . . . . . . . Heaviest Build 12 | 2 8 2 12 8 9 7 Greatest Support 51 | 3 8 4 51 16 12 12 Greatest Overweight (x) 1 | . 1 . 1 . . . Average Overweight (x) . | . . . . . . . Largest Inventory Capacity 5 | 5 5 5 5 5 5 5 Average Capacity 5 | 5 5 5 5 5 5 5 Most Carried 5 | 1 5 5 5 4 3 3 Average Carried 3 | . 3 5 4 3 3 2 Final Capacity 5 | 5 5 5 5 5 5 5 Final Carried 5 | 1 5 5 5 3 3 2 Class Distribution -------------------- 49% | Mutant 26% | Sprinter 15% | Scavenger-Sprinter 8% | Scavenger-Mutant Dominant Class ---------------- Mutant | -10/Materials Mutant | -10/Mines Mutant | -9/Materials Sprinter | -9/Mines Sprinter | -7/Zion Sprinter | -7/Deep Caves Resources | -11 -10 -10 -9 -9 -7 -7 ----------- Run | Yrd Mat Min Mat Min Zio Dee Matter Collected 797 | 230 148 36 343 20 20 . Remotely . | . . . . . . . Salvage Created 1048 | 87 198 . 743 20 . . Parts 65 | . 16 . 47 2 . . Haulers Intercepted 3 | . . . 3 . . . Recyclers Shooed 3 | . 1 . 2 . . . Parts Field Recycled . | . . . . . . . Retrieved Matter . | . . . . . . . Parts Self-Destructed . | . . . . . . . Prevented . | . . . . . . . Kills | -11 -10 -10 -9 -9 -7 -7 ------- Run | Yrd Mat Min Mat Min Zio Dee Combat Hostiles Destroyed 20 | . 8 . 12 . . . Melee 1 | . . . 1 . . . Guns 9 | . 8 . 1 . . . Cannons 9 | . . . 9 . . . Classes Destroyed 10 | 2 4 . 4 . . . Worker 2 | . . . 2 . . . Builder 1 | . 1 . . . . . Tunneler 2 | 1 . . . 1 . . Hauler 3 | . . . 3 . . . Recycler 3 | 1 . . 2 . . . Operator 1 | . . . 1 . . . Watcher 3 | . 1 . 2 . . . Swarmer 12 | . 6 . 6 . . . Grunt 6 | . 2 . 4 . . . Sentry 2 | . . . 2 . . . Best Kill Streak 10 | 1 7 . 10 1 . . Combat Bots Only 6 | . 6 . 3 . . . Max Kills in Single Turn 1 | 1 1 . 1 1 . . Gunslinging . | . . . . . . . Exploded . | . . . . . . . Melee 1 | . . . 1 . . . Uniques/NPCs Destroyed . | . . . . . . . Combat | -11 -10 -10 -9 -9 -7 -7 -------- Run | Yrd Mat Min Mat Min Zio Dee Hostile Shots Fired 185 | . 62 . 84 4 . 35 Missed 66 | . 18 . 30 2 . 16 Hits 119 | . 44 . 54 2 . 19 Projectile 119 | . 44 . 54 2 . 19 Critical Strikes 3 | . 3 . . . . . Damage Taken 1720 | . 499 . 647 22 . 552 Core 577 | . 136 . 180 . . 261 Absorbed by Shields . | . . . . . . . Redirected to Shielding 134 | . 5 . 85 3 . 41 Regen/Repaired (Parts) 63 | . . . 63 . . . Core Remaining (%) 72 | 100 . 45 . . . . Volleys Fired 111 | 13 44 . 51 2 . 1 Largest 2 | 1 2 . 2 1 . 1 Hottest 91 | 50 50 . 91 68 . 30 Shots Fired 155 | 13 62 . 77 2 . 1 Gun 100 | 13 61 . 26 . . . Cannon 53 | . . . 51 2 . . Launcher 2 | . 1 . . . . 1 Special . | . . . . . . . Kinetic 97 | . 45 . 52 . . . Thermal 56 | 13 16 . 25 2 . . Explosive 2 | . 1 . . . . 1 Electromagnetic . | . . . . . . . Robot Hit Streak 9 | 6 9 . 6 1 . . Robot Miss Streak 6 | 2 6 . 3 1 . . Penetration Max . | . . . . . . . Secondary Targets . | . . . . . . . Shots Hit Robots 97 | 9 37 . 50 1 . . Core Hits 45 | 3 17 . 23 1 . 1 Critical Kills . | . . . . . . . Critical Parts Destroyed 2 | . . . 2 . . . Critical Strikes 5 | 1 1 . 3 . . . Burn 2 | 1 1 . . . . . Blast 1 | . . . 1 . . . Smash 2 | . . . 2 . . . Melee Attacks 9 | . . . 9 . . . Impact 9 | . . . 9 . . . Slashing . | . . . . . . . Piercing . | . . . . . . . Sneak Attacks 1 | . . . 1 . . . Combat Hostiles 1 | . . . 1 . . . Follow-up Attacks . | . . . . . . . Damage Inflicted 1737 | 116 361 . 1215 20 . 25 Guns 624 | 116 361 . 147 . . . Cannons 766 | . . . 746 20 . . Explosions 25 | . . . . . . 25 Melee 288 | . . . 288 . . . Ramming 34 | . . . 34 . . . Kinetic 735 | . 226 . 509 . . . Thermal 655 | 116 135 . 384 20 . . Explosive 25 | . . . . . . 25 Electromagnetic . | . . . . . . . Impact 288 | . . . 288 . . . Slashing . | . . . . . . . Piercing . | . . . . . . . Highest Corruption . | . . . . . . . Average Corruption . | . . . . . . . Corruption Purged . | . . . . . . . Corruption Blocked . | . . . . . . . Overload Shots . | . . . . . . . Overflow Damage 116 | . . . 116 . . . Projectiles . | . . . . . . . Explosions . | . . . . . . . Melee 116 | . . . 116 . . . Knockbacks 4 | . . . 4 . . . Impact 4 | . . . 4 . . . Kinetic . | . . . . . . . Secondary . | . . . . . . . Self-Inflicted Damage . | . . . . . . . Shots . | . . . . . . . Rammed . | . . . . . . . Targets Rammed 9 | . . . 9 . . . Kicked 9 | . . . 9 . . . Crushed . | . . . . . . . Highest Temperature 170 | 25 132 . 170 48 . 19 Average Temperature 46 | 25 48 . 47 26 . 12 Received Heat Transfer 570 | . 219 . 222 12 . 117 Siege Activations . | . . . . . . . Martial Activations . | . . . . . . . Shielding Activations . | . . . . . . . Robots Disrupted . | . . . . . . . Combat Hostiles . | . . . . . . . Robots Corrupted 1 | . . . 1 . . . Combat Hostiles 1 | . . . 1 . . . Parts Fried . | . . . . . . . Impact Corruptions 4 | . . . 4 . . . Robots Melted . | . . . . . . . Combat Hostiles . | . . . . . . . Parts Melted 4 | 1 3 . . . . . Heat Transferred 1591 | 407 481 . 666 37 . . Parts Sabotaged . | . . . . . . . Parts Stolen . | . . . . . . . Parts Stripped . | . . . . . . . Power Chain Reactions . | . . . . . . . Alert | -11 -10 -10 -9 -9 -7 -7 ------- Run | Yrd Mat Min Mat Min Zio Dee Maximum Alert Level 2 | . . . 2 1 . . Low Security (%) 74 | 100 100 100 56 78 . . Level 1 22 | . . . 38 21 . . Level 2 2 | . . . 5 . . . Level 3 . | . . . . . . . Level 4 . | . . . . . . . Level 5 . | . . . . . . . High Security . | . . . . . . . Max Security . | . . . . . . . Peak Influence 546 | 5 182 55 546 204 . . Initial 204 | . 3 55 . 204 . . Average 147 | . 132 20 182 188 . . Influence Increases 1355 | 10 354 . 986 5 . . Destroy 0b10 Robot/C 560 | . 160 . 400 . . . Destroy 0b10 Robot/NC 80 | 10 10 . 55 5 . . Destroy Leader 134 | . 32 . 102 . . . Allied During Kill 56 | . . . 56 . . . Successful Hack 97 | . 56 . 41 . . . Destroy Structure 8 | . 6 . 2 . . . Partial Spotted 90 | . 15 . 75 . . . Lose Combat Pursuer 330 | . 75 . 255 . . . Influence Decreases 1355 | 5 215 144 460 362 169 . Entered New Map 582 | . 2 89 . 322 169 . Time Decay 653 | 5 183 55 370 40 . . Lost Part 60 | . 30 . 30 . . . Lost Ally 60 | . . . 60 . . . Squads Dispatched 3 | . . . 3 . . . Investigation 2 | . . . 2 . . . Extermination . | . . . . . . . Reinforcement 1 | . . . 1 . . . Assault . | . . . . . . . Garrison . | . . . . . . . Intercept . | . . . . . . . Searches Triggered . | . . . . . . . Construction Impeded . | . . . . . . . Haulers Reinforced . | . . . . . . . Active Scanning Responses . | . . . . . . . Cargo Convoy Interrupts . | . . . . . . . Stealth | -11 -10 -10 -9 -9 -7 -7 --------- Run | Yrd Mat Min Mat Min Zio Dee Distress Signals 6 | . 3 . 3 . . . Communications Jammed . | . . . . . . . Distress Signals . | . . . . . . . Times Spotted 100 | . 16 . 51 12 . 21 Peak Tracking Total 39 | . 5 . 13 20 . 39 Tactical Retreats 10 | . 2 . 7 . . 1 Traps | -11 -10 -10 -9 -9 -7 -7 ------- Run | Yrd Mat Min Mat Min Zio Dee Traps Triggered 1 | . 1 . . . . . Indirectly . | . . . . . . . Trap Hack Attempts . | . . . . . . . Triggered . | . . . . . . . Disarmed . | . . . . . . . Reprogrammed . | . . . . . . . Reused . | . . . . . . . Traps Extracted . | . . . . . . . Installed . | . . . . . . . Triggered . | . . . . . . . Machines | -11 -10 -10 -9 -9 -7 -7 ---------- Run | Yrd Mat Min Mat Min Zio Dee Machines Disabled 4 | . . . . . 3 1 Max in Single Turn 1 | . . . . . 1 1 Machines Repaired . | . . . . . . . Machines Dismantled 3 | . . . . . 3 . Machines Sabotaged . | . . . . . . . Overloaded Fab Kills . | . . . . . . . Hacking | -11 -10 -10 -9 -9 -7 -7 --------- Run | Yrd Mat Min Mat Min Zio Dee Machines Accessed 18 | . 8 . 10 . . . Terminals 16 | . 8 . 8 . . . Fabricators . | . . . . . . . Repair Stations 2 | . . . 2 . . . Recycling Units . | . . . . . . . Scanalyzers . | . . . . . . . Garrison Access . | . . . . . . . Total Hacks 60 | . 32 . 28 . . . Successful 39 | . 22 . 17 . . . Failed 21 | . 10 . 11 . . . Catastrophic 3 | . 2 . 1 . . . Database Lockouts . | . . . . . . . Manual 50 | . 27 . 23 . . . Terminals 56 | . 32 . 24 . . . Fabricators . | . . . . . . . Repair Stations 4 | . . . 4 . . . Recycling Units . | . . . . . . . Scanalyzers . | . . . . . . . Garrison Access . | . . . . . . . Terminal Hacks 15 | . 10 . 5 . . . Part Schematic 1 | . . . 1 . . . Robot Analysis 3 | . 2 . 1 . . . Prototype ID Bank 3 | . 2 . 1 . . . Branch Access Points 1 | . 1 . . . . . Terminal Index 1 | . 1 . . . . . Repair Station Index 1 | . . . 1 . . . Hauler Manifests 1 | . 1 . . . . . Registered Components 1 | . 1 . . . . . Zone Layout 3 | . 2 . 1 . . . Fabricator Hacks . | . . . . . . . Repair Station Hacks 2 | . . . 2 . . . Scan Component 1 | . . . 1 . . . Repair 1 | . . . 1 . . . Recycling Unit Hacks . | . . . . . . . Scanalyzer . | . . . . . . . Garrison Access Hacks . | . . . . . . . Unauthorized Hacks 22 | . 12 . 10 . . . Terminals 21 | . 12 . 9 . . . Assimilate 1 | . 1 . . . . . Botnet 10 | . 6 . 4 . . . Skim 10 | . 5 . 5 . . . Fabricators . | . . . . . . . Repair Stations 1 | . . . 1 . . . Patch 1 | . . . 1 . . . Recycling Units . | . . . . . . . Scanalyzers . | . . . . . . . Garrison Access . | . . . . . . . Data Cores Recovered 1 | . . . 1 . . . Used . | . . . . . . . Hacking Detections 16 | . 8 . 8 . . . Full Trace Events 1 | . 1 . . . . . Feedback Events . | . . . . . . . Feedback Blocked . | . . . . . . . Robot Schematics Acquired 3 | . . . . . 3 . Robots Built . | . . . . . . . Authchips . | . . . . . . . Time . | . . . . . . . Total Robot Build Rating . | . . . . . . . Part Schematics Acquired 16 | . . . 1 . 15 . Parts Built . | . . . . . . . Authchips . | . . . . . . . Time . | . . . . . . . Total Part Build Rating . | . . . . . . . Parts Repaired 1 | . . . 1 . . . Time 26 | . . . 26 . . . Parts Recycled . | . . . . . . . Recycled Matter . | . . . . . . . Retrieved Matter . | . . . . . . . Retrieved Components . | . . . . . . . Parts Scanalyzed . | . . . . . . . Part Schematics Acquired . | . . . . . . . Parts Damaged . | . . . . . . . Bothacking | -11 -10 -10 -9 -9 -7 -7 ------------ Run | Yrd Mat Min Mat Min Zio Dee Used RIF Installer . | . . . . . . . Robots Hacked . | . . . . . . . Non-combat . | . . . . . . . Combat . | . . . . . . . Robot Hacks Applied . | . . . . . . . Relay Couplers Released . | . . . . . . . Fabnet Peak Effective % . | . . . . . . . Robots Rewired . | . . . . . . . Allies Hacked . | . . . . . . . Hacks Repelled . | . . . . . . . Allies | -11 -10 -10 -9 -9 -7 -7 -------- Run | Yrd Mat Min Mat Min Zio Dee Total Allies 4 | . 1 3 . . . . Largest Group 3 | . 1 3 3 . . . Highest-Rated Group 40 | . 10 40 40 . . . Highest-Rated Ally 16 | . 10 16 16 . . . Total Orders . | . . . . . . . Ally Attacks 67 | . . . 67 . . . Total Damage 657 | . . . 657 . . . Kills 9 | . . . 9 . . . Allies Corrupted . | . . . . . . . Allies Melted . | . . . . . . . Intel | -11 -10 -10 -9 -9 -7 -7 ------- Run | Yrd Mat Min Mat Min Zio Dee Active Infowar (turns) . | . . . . . . . Robot Analysis Total 3 | . 2 . 1 . . . Derelict Logs Recovered 4 | . . 1 . 1 2 . Drone Launches . | . . . . . . . Drone Recoveries . | . . . . . . . Exploration | -11 -10 -10 -9 -9 -7 -7 ------------- Run | Yrd Mat Min Mat Min Zio Dee Turns Passed 2054 | 49 394 171 895 94 329 122 Spaces Moved 3247 | 35 636 234 1093 131 754 364 Core 112 | 35 75 . . . . 2 Treads . | . . . . . . . Legs 247 | . . . 247 . . . Wheels . | . . . . . . . Hover . | . . . . . . . Flight 2888 | . 561 234 846 131 754 362 Fastest Speed 29 | 50 37 40 29 29 32 32 Average Speed 43 | 50 40 40 58 31 32 32 Slowest Speed 130 | 50 120 40 130 34 34 50 Overloaded Moves . | . . . . . . . Propulsion Burnouts . | . . . . . . . Robots Hopped 38 | . 7 . 28 2 . 1 Potential Cave-ins . | . . . . . . . Cave-ins Triggered . | . . . . . . . Exploration Rate (%) 59 | 3 94 47 93 35 82 63 Regions Visited 6 Branch Regions 4 Pre-discovered Areas 4 | . . 1 . 1 2 . Known Exits Taken 2 | . 1 1 . . . . Unknown Exits Taken 4 | 1 . . 1 1 1 . Scrap Searched 3 | . . 1 . . 2 . Spaces Dug 1 | . . . 1 . . . Terrain Destroyed 7 | . 6 . 1 . . . Melee 1 | . . . 1 . . . Projectile . | . . . . . . . AOE 6 | . 6 . . . . . Terrain Rammed . | . . . . . . . Walls Destroyed . | . . . . . . . Machines Disabled . | . . . . . . . Actions | -11 -10 -10 -9 -9 -7 -7 --------- Run | Yrd Mat Min Mat Min Zio Dee Total 3632 | 51 709 310 1233 179 784 366 Wait 207 | . 8 77 74 47 1 . Move 3168 | 34 622 233 1038 126 753 362 Hop 35 | . 6 . 26 2 . 1 Pick Up 9 | 1 5 . 3 . . . Fast Attach 24 | 3 10 . 10 . 1 . Attach 6 | . 2 . 1 2 . 1 Detach 1 | . 1 . . . . . Swap 7 | . 2 . 4 . 1 . Drop 19 | . 9 . 8 . 1 1 Fire 111 | 13 44 . 51 2 . 1 Melee 9 | . . . 9 . . . Ram . | . . . . . . . Kick 9 | . . . 9 . . . Crush . | . . . . . . . Escape Stasis . | . . . . . . . Rewire . | . . . . . . . Trap . | . . . . . . . Miscellaneous 27 | . . . . . 27 . Route ------- -11/Scrapyard -10/Materials (discovered 5 exits: *Mat x3 / *Min x2) -10/Mines (discovered 3 exits: *Mat x2 / [*Sub]) -9/Materials (discovered 5 exits: [*Mat x3] / [*Min x2]) -9/Mines -7/Zion (discovered 2 exits: [*Dee] / [*Pro]) -7/Deep Caves History --------- Turn | Location | Event 6 | -11/Scrapyard | Discovered new exit (range 14) 50 | -11/Scrapyard | Entered Materials 295 | -10/Materials | Discovered new exit (range 3) 316 | -10/Materials | Discovered new exit (range 11) 356 | -10/Materials | Discovered new exit (range 10) 359 | -10/Materials | Identified exit to Mines 427 | -10/Materials | Core integrity fell below 50% 444 | -10/Materials | Entered Mines 445 | -10/Mines | Identified exit to Materials 491 | -10/Mines | Assisted by bots powering up and referring to "LRC-V3" 521 | -10/Mines | Found a hidden stash of uninstalled traps 553 | -10/Mines | Discovered new exit (range 9) 582 | -10/Mines | Build established: Mutant 615 | -10/Mines | Entered Materials 615 | -9/Materials | Accompanied by 3 allies 615 | -9/Materials | Evolved 2 slots: Propulsion x2 979 | -9/Materials | Discovered new exit (range 12) 1205 | -9/Materials | Discovered new exit (range 15) 1282 | -9/Materials | Repaired Flight Unit 1387 | -9/Materials | Discovered new exit (range 5) 1402 | -9/Materials | Loaded intel: 12 trap records 1423 | -9/Materials | Build established: Scavenger-Sprinter 1446 | -9/Materials | Discovered new exit (range 13) 1446 | -9/Materials | Discovered new exit (range 8) 1510 | -9/Materials | Entered Mines 1511 | -9/Mines | Learned location of Storage (-8) 1528 | -9/Mines | Met a Derelict bent on vengeance 1592 | -9/Mines | Assembled infested the area 1597 | -9/Mines | Assisted by a Guerilla fighting off Assembled 1598 | -9/Mines | A Derelict revealed a hidden shortcut to a safe place 1600 | -9/Mines | Learned Materials stockpile data 1604 | -9/Mines | Entered Zion 1638 | -7/Zion | Found CR-A16's Pointy Stick 1661 | -7/Zion | Discovered new exit (range 16) 1709 | -7/Zion | Learned location of Quarantine (-2) 1710 | -7/Zion | Learned location of 1 exit from Factory 1718 | -7/Zion | Received a visual enhancement algorithm 1737 | -7/Zion | Learned Factory emergency access door positions 1740 | -7/Zion | Learned location of Armory (-3) 1932 | -7/Zion | Discovered new exit (range 3) 1932 | -7/Zion | Saw the warning signs outside the Deep Caves entrance 1933 | -7/Zion | Entered Deep Caves 1939 | -7/Deep Caves | Build established: Sprinter 1999 | -7/Deep Caves | Z-Facility disabled 2017 | -7/Deep Caves | Attacked by Z-Imprinter 2032 | -7/Deep Caves | Core integrity fell below 50% 2049 | -7/Deep Caves | Spotted AG-35854 2051 | -7/Deep Caves | Exposed GOLEM chamber 2052 | -7/Deep Caves | Triggered Deep Caves wall 2053 | -7/Deep Caves | Core integrity fell below 20% 2055 | -7/Deep Caves | Destroyed by AG-35854 with Assembled Focal Cannon Last Messages --------------- 02011_ Propulsion Shielding destroyed. 02011_ Flight Unit destroyed. Z-Imprinter: GET AWAY FROM HERE! I've worked too hard for our future just to have you ruin everything! 02031_ Flight Unit destroyed. 02051_ AG-35854: "DSI9AT1D G8OHIBQ29FWG 26R186 QD12WHW8W33 TDK1 81FTS" 02051_ Core Shielding destroyed. 02051_ VTOL Module destroyed. 02051_ Wall Chamber breached. 02051_ A GOLEM Unit tumbles out of the Wall Chamber. 02052_ Flight Unit destroyed. 02053_ as-20355 released from Mobile Assembly Unit. 02053_ Dropped Grenade Launcher. 02054_ Penetrated by Slug. 02054_ VB-NZZ(l) destroyed. 02055_ CR-A16's Pointy Stick destroyed. Map ----- +----------------------------------------------------+ | ?????????????????????????????????????????? | | ?????????????????????????????????????????? | | ?????????????????????????????????????????? | | ??????????????????????????????????????#### | | ??????????????????????????????????????# | | ??????????????????????????????????????# # | | ??????????????????????????????????????# # | | ??????????????????????????????????##### # | | ?????????????????????????????????## # # | | ????????????????????????????????## # | | ??????????????? ???????????# | | ????????????? ?????????# | | ?????????? ?????### | | ???????? a s #?????## | | ??????a s ##???## | | ?????? a a [[ M #?### | | ??????aaa aa M [ ### ### | | ??????? a a [ ## ##?# | | ????????# aa ## #??? | | ?????????" M = ## ##??? | | ?????????" ## ###???? | | ????????"" g = ## ##????? | | ????????"! [ h = ;## ##???? | | ????????"! = ## #### | | ????????# [ ! * * ## | | ????????" h @ ## | | ????????" h l]/ ## | | ????????" G % Ia | | ????????""" | | ????????" [ | | ????????"" # | | ????????" M # | | ????????"" ### | | ????????" # # #?############ | | ????????" #### ## ## ##????????????? | | ????????""" ##???# ## ####?????????????? | | ?????????? ?????#### #????????????????? | | ?????????####??????????#?????????????????? | | | | | | | | | | | | | | | | | | | | | | | | | +----------------------------------------------------+ Best States ------------- Heat Dissipation 28 Energy Generation 10 Energy Capacity 125 Matter Stores 300 Matter Capacity 300 Sight Range 16 Terrain Scan Density 10 Armor Coverage 150 Core Shielding 20 Power Shielding 33 Propulsion Shielding 33 Evasion (%) 64 Targeting Accuracy 5 Item Schematics ----------------- VTOL Module | -9/Materials | Hacked Gatling Laser | -7/Zion | Archive Imp. Medium Treads | -7/Zion | Archive Hpw. Shock Rifle | -7/Zion | Archive Coolant Injector | -7/Zion | Archive EM Shield | -7/Zion | Archive Remote Datajack | -7/Zion | Archive Imp. Weapon Cycler | -7/Zion | Archive Imp. Kinecellerator | -7/Zion | Archive Microactuators | -7/Zion | Archive Hvy. Machine Gun | -7/Zion | Archive Proton Missile Launcher | -7/Zion | Archive Coil Gun | -7/Zion | Archive Flak Gun | -7/Zion | Archive Thermic Laser | -7/Zion | Archive Adv. Assault Cannon | -7/Zion | Archive Robot Schematics ------------------ L-31 Rogue | -7/Zion | Archive T-07 Excavator | -7/Zion | Archive G-47 Trooper | -7/Zion | Archive Fabricated ------------ Nothing Repaired ---------- Flight Unit | 15% | -9/Materials Alien Tech Used ----------------- None Achievements -------------- None Challenges ------------ None Game ------ Seed GrenadeLauncherDrivehammer Manual? 0 Play Time 00:33:43 Cumulative 322.9 hours Start 2025.07.09 @ 17:39:13 End 2025.07.09 @ 18:10:20 Sessions 1 Manual Loads 0 Difficulty Rogue Special Mode None Game No. 159 Rogue 159 Adventurer 0 Explorer 0 Win Type - Total 22 Types 8/1/5/1/5/1/0/0/0/1 Lore% 88 Gallery% 78 Achievement% 76 Wizard Run 0 Options --------- Layout 1 ASCII 0 Keyboard 0 Movement Numpad Keybinds 0 Fullscreen 1 Font 24/Smallcaps Map View 50x35 Zoom Use 0% Tactical HUD 1 Map Filters NONE Filters NONE Steam 1 RUN: 0a5a8be3-68ad-492f-b082-8ae31a1e0c2d